[Event "*** Titled Tuesday Blitz"]
[Site "Chess.com"]
[Date "2021.04.27"]
[Round "6"]
[White "TeukkaSalama"]
[Black "juancruzarias"]
[Result "0-1"]
[WhiteElo "2371"]
[BlackElo "2586"]
[TimeControl "180+1"]
[EndTime "11:07:11 PDT"]
[Termination "juancruzarias won by resignation"]

1. d4 {[%clk 0:03:00.9]} 1... e6 {[%clk 0:03:00.4]} 2. Bf4 {[%clk 0:03:00.9]}
2... Nf6 {[%clk 0:02:59]} 3. e3 {[%clk 0:03:00.8]} 3... Bd6 {[%clk 0:02:59.2]}
4. Nf3 {[%clk 0:02:59.3]} 4... b6 {[%clk 0:02:58.6]} 5. Bd3 {[%clk 0:02:58.8]}
5... Bb7 {[%clk 0:02:59]} 6. Nbd2 {[%clk 0:02:58.9]} 6... O-O {[%clk 0:02:59.3]}
7. a4 {[%clk 0:02:58]} 7... Nc6 {[%clk 0:02:58.9]} 8. c3 {[%clk 0:02:56]} 8...
Ne7 {[%clk 0:02:58.9]} 9. O-O {[%clk 0:02:53.2]} 9... Ng6 {[%clk 0:02:58.8]} 10.
Bxd6 {[%clk 0:02:52.9]} 10... cxd6 {[%clk 0:02:59.6]} 11. Re1 {[%clk 0:02:49.5]}
11... d5 {[%clk 0:02:52.2]} 12. a5 {[%clk 0:02:44.7]} 12... Bc6 {[%clk
0:02:50.3]} 13. b4 {[%clk 0:02:41.8]} 13... d6 {[%clk 0:02:41.4]} 14. b5 {[%clk
0:02:39.2]} 14... Bd7 {[%clk 0:02:41]} 15. a6 {[%clk 0:02:38.7]} 15... Rc8
{[%clk 0:02:40.3]} 16. c4 {[%clk 0:02:30]} 16... Qe7 {[%clk 0:02:30.7]} 17. Qb3
{[%clk 0:02:26.2]} 17... Rc7 {[%clk 0:02:24]} 18. cxd5 {[%clk 0:02:03.2]} 18...
Nxd5 {[%clk 0:02:18.6]} 19. Rac1 {[%clk 0:02:02.5]} 19... Rfc8 {[%clk
0:02:18.3]} 20. Qb2 {[%clk 0:01:37.6]} 20... Nc3 {[%clk 0:02:05.1]} 21. Ne4
{[%clk 0:01:09]} 21... Nxe4 {[%clk 0:01:46.7]} 22. Bxe4 {[%clk 0:01:09.9]} 22...
d5 {[%clk 0:01:38]} 23. Bd3 {[%clk 0:01:07.8]} 23... Qe8 {[%clk 0:01:33.4]} 24.
h4 {[%clk 0:00:59.1]} 24... Ne7 {[%clk 0:01:16.2]} 25. Ne5 {[%clk 0:00:35.6]}
25... Qd8 {[%clk 0:01:11.8]} 26. g3 {[%clk 0:00:31.9]} 26... Be8 {[%clk
0:01:11.8]} 27. Rxc7 {[%clk 0:00:26.7]} 27... Qxc7 {[%clk 0:01:09.8]} 28. Re2
{[%clk 0:00:24.8]} 28... Qc1+ {[%clk 0:01:08.2]} 29. Qxc1 {[%clk 0:00:24.4]}
29... Rxc1+ {[%clk 0:01:09.1]} 30. Kg2 {[%clk 0:00:25]} 30... f6 {[%clk
0:01:09.3]} 31. Nf3 {[%clk 0:00:23.2]} 31... Bh5 {[%clk 0:01:09.6]} 32. Rc2
{[%clk 0:00:19]} 32... Rxc2 {[%clk 0:01:06.7]} 33. Bxc2 {[%clk 0:00:19.9]} 33...
Nc8 {[%clk 0:01:05.6]} 34. Ne1 {[%clk 0:00:15.2]} 34... Nd6 {[%clk 0:01:05.4]}
35. Bd3 {[%clk 0:00:15.7]} 35... Be8 {[%clk 0:01:03.7]} 36. Nc2 {[%clk
0:00:15.7]} 36... Bxb5 {[%clk 0:01:03.4]} 37. Bxb5 {[%clk 0:00:15.5]} 37... Nxb5
{[%clk 0:01:04.3]} 38. Nb4 {[%clk 0:00:15.9]} 38... Nc7 {[%clk 0:01:03.3]} 39.
f3 {[%clk 0:00:10.3]} 39... Kf7 {[%clk 0:01:03.4]} 40. e4 {[%clk 0:00:10.8]}
40... Ke7 {[%clk 0:01:01.1]} 41. Kf2 {[%clk 0:00:08.3]} 41... Kd6 {[%clk
0:01:00.9]} 42. Ke3 {[%clk 0:00:08.9]} 42... dxe4 {[%clk 0:00:58.9]} 43. fxe4
{[%clk 0:00:09.8]} 43... e5 {[%clk 0:00:59.6]} 44. d5 {[%clk 0:00:10]} 44... Kc5
{[%clk 0:00:58.8]} 45. Nc6 {[%clk 0:00:09.2]} 45... Nxa6 {[%clk 0:00:58.7]} 46.
Nxa7 {[%clk 0:00:09.5]} 46... b5 {[%clk 0:00:54.2]} 47. Nc6 {[%clk 0:00:09.3]}
47... b4 {[%clk 0:00:54.2]} 48. Na5 {[%clk 0:00:09.5]} 48... Kb5 {[%clk
0:00:51.5]} 49. Nb3 {[%clk 0:00:09.8]} 49... Kc4 {[%clk 0:00:51.6]} 50. Nd2+
{[%clk 0:00:09.9]} 50... Kc3 {[%clk 0:00:52.1]} 51. g4 {[%clk 0:00:06.3]} 51...
Nc5 {[%clk 0:00:50.9]} 52. d6 {[%clk 0:00:04.4]} 52... b3 {[%clk 0:00:50.4]} 53.
Nb1+ {[%clk 0:00:04]} 53... Kc2 {[%clk 0:00:50.8]} 54. Na3+ {[%clk 0:00:04]}
54... Kc1 {[%clk 0:00:50.3]} 55. Nc4 {[%clk 0:00:03]} 55... b2 {[%clk
0:00:49.9]} 56. Na3 {[%clk 0:00:03.2]} 56... b1=Q {[%clk 0:00:49.4]} 57. Nxb1
{[%clk 0:00:03.9]} 57... Kxb1 {[%clk 0:00:50.3]} 58. Kd2 {[%clk 0:00:03.7]}
58... Kb2 {[%clk 0:00:50.7]} 59. Ke3 {[%clk 0:00:03.8]} 59... Kb3 {[%clk
0:00:50.7]} 60. Kf3 {[%clk 0:00:03.3]} 60... Nd7 {[%clk 0:00:50.8]} 61. g5
{[%clk 0:00:04]} 61... fxg5 {[%clk 0:00:50]} 62. hxg5 {[%clk 0:00:04.7]} 62...
g6 {[%clk 0:00:50.5]} 63. Ke3 {[%clk 0:00:04.4]} 63... Kc4 {[%clk 0:00:51.4]}
0-1

[Event "*** Titled Tuesday Blitz"]
[Site "Chess.com"]
[Date "2021.04.27"]
[Round "6"]
[White "MFBerna"]
[Black "UmbertoConcelli"]
[Result "0-1"]
[WhiteElo "2457"]
[BlackElo "2802"]
[TimeControl "180+1"]
[EndTime "11:07:11 PDT"]
[Termination "UmbertoConcelli won by resignation"]

1. e4 {[%clk 0:03:00.9]} 1... c6 {[%clk 0:02:59.4]} 2. d4 {[%clk 0:02:59.5]}
2... d5 {[%clk 0:03:00.3]} 3. exd5 {[%clk 0:02:51.6]} 3... cxd5 {[%clk
0:03:00.3]} 4. Bd3 {[%clk 0:02:52.5]} 4... Nc6 {[%clk 0:03:00.3]} 5. c3 {[%clk
0:02:49.8]} 5... Nf6 {[%clk 0:03:00.4]} 6. Bf4 {[%clk 0:02:47]} 6... g6 {[%clk
0:03:00.4]} 7. Ne2 {[%clk 0:02:46.7]} 7... Bf5 {[%clk 0:02:59.7]} 8. O-O {[%clk
0:02:45.6]} 8... e6 {[%clk 0:02:57.9]} 9. Re1 {[%clk 0:02:40.2]} 9... Bd6 {[%clk
0:02:54.3]} 10. g3 {[%clk 0:02:24.4]} 10... Ne4 {[%clk 0:02:46.1]} 11. f3 {[%clk
0:02:21.8]} 11... Ng5 {[%clk 0:02:40.7]} 12. Kg2 {[%clk 0:02:07.5]} 12... Bh3+
{[%clk 0:02:16.1]} 13. Kf2 {[%clk 0:02:07.6]} 13... h6 {[%clk 0:02:11.4]} 14.
Nd2 {[%clk 0:01:56.1]} 14... Bf5 {[%clk 0:02:05.1]} 15. Nb3 {[%clk 0:01:42.6]}
15... Nh3+ {[%clk 0:02:03.4]} 16. Kg2 {[%clk 0:01:37.9]} 16... Nxf4+ {[%clk
0:02:03.1]} 17. Nxf4 {[%clk 0:01:34.3]} 17... Bxf4 {[%clk 0:02:02.6]} 18. gxf4
{[%clk 0:01:24.4]} 18... Qh4 {[%clk 0:01:46.5]} 19. Nc5 {[%clk 0:01:06.2]} 19...
O-O {[%clk 0:01:34.5]} 20. Bxf5 {[%clk 0:01:02.5]} 20... gxf5 {[%clk 0:01:34]}
21. Qd2 {[%clk 0:01:02.1]} 21... Kh8 {[%clk 0:01:31.5]} 22. Kh1 {[%clk
0:01:01.4]} 22... Rg8 {[%clk 0:01:30.3]} 23. Rg1 {[%clk 0:01:01.3]} 23... Ne7
{[%clk 0:01:21.5]} 24. Nd3 {[%clk 0:00:55.7]} 24... Ng6 {[%clk 0:01:16.3]} 25.
Rg3 {[%clk 0:00:50.4]} 25... Rg7 {[%clk 0:01:10.7]} 26. Rag1 {[%clk 0:00:50.1]}
26... Rag8 {[%clk 0:01:10.4]} 27. Qf2 {[%clk 0:00:34.1]} 27... Qd8 {[%clk
0:00:45.1]} 28. Rh3 {[%clk 0:00:31.8]} 28... Kh7 {[%clk 0:00:44.5]} 29. Rg5
{[%clk 0:00:25.8]} 29... Rh8 {[%clk 0:00:26.8]} 30. Ne5 {[%clk 0:00:20.3]} 30...
Kg8 {[%clk 0:00:22.3]} 31. Nxg6 {[%clk 0:00:13.6]} 31... Rxg6 {[%clk 0:00:20.5]}
32. Rxg6+ {[%clk 0:00:05.5]} 32... fxg6 {[%clk 0:00:21.4]} 33. Qe3 {[%clk
0:00:05.5]} 33... Kf7 {[%clk 0:00:21.3]} 34. Rg3 {[%clk 0:00:05.6]} 34... Qf6
{[%clk 0:00:21]} 35. Qe5 {[%clk 0:00:05.8]} 35... Qxe5 {[%clk 0:00:20.6]} 36.
dxe5 {[%clk 0:00:05.8]} 36... Rc8 {[%clk 0:00:19.5]} 37. Rg2 {[%clk 0:00:05.4]}
37... Rc4 {[%clk 0:00:19]} 38. Rd2 {[%clk 0:00:03.1]} 38... Rxf4 {[%clk
0:00:18.4]} 39. Rd4 {[%clk 0:00:04]} 39... Rxd4 {[%clk 0:00:17.6]} 40. cxd4
{[%clk 0:00:04.9]} 40... f4 {[%clk 0:00:17.9]} 41. Kg2 {[%clk 0:00:05.2]} 41...
g5 {[%clk 0:00:18.3]} 42. h4 {[%clk 0:00:04.2]} 42... Kg6 {[%clk 0:00:18.2]} 43.
Kh3 {[%clk 0:00:04.2]} 43... Kh5 {[%clk 0:00:17.9]} 44. hxg5 {[%clk 0:00:03.4]}
44... hxg5 {[%clk 0:00:18.8]} 45. b3 {[%clk 0:00:02.4]} 45... b6 {[%clk
0:00:18.8]} 46. Kg2 {[%clk 0:00:02.6]} 46... Kh4 {[%clk 0:00:18.4]} 47. Kh2
{[%clk 0:00:02.9]} 47... g4 {[%clk 0:00:18.6]} 48. Kg2 {[%clk 0:00:02]} 48... g3
{[%clk 0:00:18.3]} 49. Kg1 {[%clk 0:00:02.1]} 49... Kh3 {[%clk 0:00:18.6]} 50.
Kh1 {[%clk 0:00:02.4]} 50... g2+ {[%clk 0:00:18.8]} 51. Kg1 {[%clk 0:00:02.7]}
51... Kg3 {[%clk 0:00:19.7]} 0-1

[Event "*** Titled Tuesday Blitz"]
[Site "Chess.com"]
[Date "2021.04.27"]
[Round "6"]
[White "nocnypako"]
[Black "DanielTitichoca"]
[Result "1-0"]
[WhiteElo "2551"]
[BlackElo "2393"]
[TimeControl "180+1"]
[EndTime "11:07:15 PDT"]
[Termination "nocnypako won by checkmate"]

1. d4 {[%clk 0:03:00.9]} 1... Nf6 {[%clk 0:02:57.9]} 2. c4 {[%clk 0:03:00.6]}
2... c5 {[%clk 0:02:55.8]} 3. d5 {[%clk 0:03:00.1]} 3... e6 {[%clk 0:02:54.9]}
4. Nc3 {[%clk 0:02:59.6]} 4... exd5 {[%clk 0:02:54.5]} 5. cxd5 {[%clk
0:03:00.5]} 5... d6 {[%clk 0:02:53.3]} 6. e4 {[%clk 0:03:00]} 6... g6 {[%clk
0:02:51.7]} 7. f4 {[%clk 0:02:59.6]} 7... Bg7 {[%clk 0:02:50.8]} 8. Bb5+ {[%clk
0:02:55.7]} 8... Nfd7 {[%clk 0:02:49.3]} 9. a4 {[%clk 0:02:52.5]} 9... O-O
{[%clk 0:02:48.6]} 10. Nf3 {[%clk 0:02:50.6]} 10... a6 {[%clk 0:02:43.1]} 11.
Bd3 {[%clk 0:02:48.3]} 11... Re8 {[%clk 0:02:31.8]} 12. O-O {[%clk 0:02:44.7]}
12... Nf6 {[%clk 0:01:26.2]} 13. h3 {[%clk 0:02:38]} 13... Nbd7 {[%clk
0:01:20.3]} 14. Bd2 {[%clk 0:02:30.5]} 14... Rb8 {[%clk 0:01:14]} 15. e5 {[%clk
0:02:09.6]} 15... dxe5 {[%clk 0:01:09.2]} 16. fxe5 {[%clk 0:02:10.5]} 16... Nxe5
{[%clk 0:01:09.7]} 17. Nxe5 {[%clk 0:02:10.5]} 17... Rxe5 {[%clk 0:01:08.9]} 18.
Bf4 {[%clk 0:02:10.4]} 18... Nh5 {[%clk 0:01:04.8]} 19. Bxe5 {[%clk 0:02:07.4]}
19... Bxe5 {[%clk 0:01:05.7]} 20. Qf3 {[%clk 0:02:03]} 20... f5 {[%clk
0:01:00.6]} 21. Ne2 {[%clk 0:01:56.5]} 21... Qc7 {[%clk 0:00:51.8]} 22. g4
{[%clk 0:01:48]} 22... Ng7 {[%clk 0:00:50.4]} 23. Rad1 {[%clk 0:01:33.9]} 23...
Bd7 {[%clk 0:00:44.9]} 24. d6 {[%clk 0:01:30]} 24... Bxd6 {[%clk 0:00:40.6]} 25.
Bc4+ {[%clk 0:01:29.8]} 25... Kh8 {[%clk 0:00:39.6]} 26. Qd5 {[%clk 0:01:28.5]}
26... Bh2+ {[%clk 0:00:36.4]} 27. Kf2 {[%clk 0:01:23]} 27... Bc6 {[%clk
0:00:30.8]} 28. Qxc5 {[%clk 0:01:16.1]} 28... Re8 {[%clk 0:00:20.3]} 29. Qd4
{[%clk 0:00:50.3]} 29... Be5 {[%clk 0:00:18.4]} 30. Qc5 {[%clk 0:00:30.6]} 30...
Qb8 {[%clk 0:00:08.9]} 31. Rd3 {[%clk 0:00:25.4]} 31... fxg4 {[%clk 0:00:07.5]}
32. hxg4 {[%clk 0:00:21.9]} 32... Rf8+ {[%clk 0:00:08.4]} 33. Ke1 {[%clk
0:00:21.7]} 33... Re8 {[%clk 0:00:07.5]} 34. Kd1 {[%clk 0:00:20.5]} 34... Bxb2
{[%clk 0:00:07]} 35. Bd5 {[%clk 0:00:16.9]} 35... Bxa4+ {[%clk 0:00:06.7]} 36.
Kd2 {[%clk 0:00:16.1]} 36... Bb5 {[%clk 0:00:06.6]} 37. Bc4 {[%clk 0:00:15.6]}
37... Bc6 {[%clk 0:00:05.6]} 38. Bd5 {[%clk 0:00:15.1]} 38... Bb5 {[%clk
0:00:05.3]} 39. Bc4 {[%clk 0:00:15.4]} 39... Rc8 {[%clk 0:00:05.9]} 40. Qd6
{[%clk 0:00:07.3]} 40... Bxc4 {[%clk 0:00:05.5]} 41. Qxb8 {[%clk 0:00:06.8]}
41... Rxb8 {[%clk 0:00:06.4]} 42. Rd7 {[%clk 0:00:06.7]} 42... Ba3 {[%clk
0:00:06.3]} 43. Nd4 {[%clk 0:00:04.4]} 43... Bb5 {[%clk 0:00:05.2]} 44. Nxb5
{[%clk 0:00:03.6]} 44... axb5 {[%clk 0:00:06.1]} 45. Rff7 {[%clk 0:00:03.8]}
45... Bf8 {[%clk 0:00:06.3]} 46. Rxb7 {[%clk 0:00:03.1]} 46... Rxb7 {[%clk
0:00:06.7]} 47. Rxf8# {[%clk 0:00:03.2]} 1-0

[Event "*** Titled Tuesday Blitz"]
[Site "Chess.com"]
[Date "2021.04.27"]
[Round "6"]
[White "Matensien"]
[Black "mirochka"]
[Result "1-0"]
[WhiteElo "2350"]
[BlackElo "2223"]
[TimeControl "180+1"]
[EndTime "11:07:19 PDT"]
[Termination "Matensien won on time"]

1. c4 {[%clk 0:03:00.9]} 1... Nf6 {[%clk 0:02:58.7]} 2. Nf3 {[%clk 0:03:00.7]}
2... e6 {[%clk 0:02:57.9]} 3. g3 {[%clk 0:02:59.2]} 3... d5 {[%clk 0:02:57.7]}
4. Bg2 {[%clk 0:02:59.9]} 4... Be7 {[%clk 0:02:57.5]} 5. O-O {[%clk 0:03:00.3]}
5... O-O {[%clk 0:02:57.1]} 6. b3 {[%clk 0:03:00.9]} 6... c5 {[%clk 0:02:53.3]}
7. cxd5 {[%clk 0:03:00.3]} 7... exd5 {[%clk 0:02:52.9]} 8. d4 {[%clk 0:03:00.8]}
8... b6 {[%clk 0:02:36.5]} 9. Bb2 {[%clk 0:03:01]} 9... Nbd7 {[%clk 0:02:30]}
10. Nc3 {[%clk 0:03:01.2]} 10... Bb7 {[%clk 0:02:27.9]} 11. Rc1 {[%clk
0:03:01.5]} 11... Ne4 {[%clk 0:02:17.3]} 12. dxc5 {[%clk 0:02:56.5]} 12... Nxc3
{[%clk 0:02:12.7]} 13. Bxc3 {[%clk 0:02:51.3]} 13... Nxc5 {[%clk 0:02:12.4]} 14.
Nd4 {[%clk 0:02:46.8]} 14... Ne4 {[%clk 0:02:05.7]} 15. Bb2 {[%clk 0:02:46.6]}
15... Rc8 {[%clk 0:01:57]} 16. Rxc8 {[%clk 0:02:43.4]} 16... Qxc8 {[%clk
0:01:55]} 17. Qd3 {[%clk 0:02:42.6]} 17... Bf6 {[%clk 0:01:47.7]} 18. Rc1 {[%clk
0:02:40.4]} 18... Qd7 {[%clk 0:01:46.4]} 19. Rc2 {[%clk 0:02:16.8]} 19... h5
{[%clk 0:01:44]} 20. Nb5 {[%clk 0:02:15.3]} 20... Bxb2 {[%clk 0:01:30.4]} 21.
Bxe4 {[%clk 0:02:02.9]} 21... Bc6 {[%clk 0:01:00.5]} 22. Rxb2 {[%clk 0:01:51.7]}
22... dxe4 {[%clk 0:00:58.2]} 23. Qxd7 {[%clk 0:01:46.6]} 23... Bxd7 {[%clk
0:00:59.1]} 24. Nd6 {[%clk 0:01:40.4]} 24... e3 {[%clk 0:00:51.5]} 25. fxe3
{[%clk 0:01:38.4]} 25... Bg4 {[%clk 0:00:48.5]} 26. Kf2 {[%clk 0:01:25.8]} 26...
Rd8 {[%clk 0:00:47.7]} 27. Rd2 {[%clk 0:01:23.4]} 27... Kf8 {[%clk 0:00:47.5]}
28. Rd4 {[%clk 0:01:23.1]} 28... Ke7 {[%clk 0:00:44.3]} 29. Nb5 {[%clk
0:01:21.7]} 29... Rc8 {[%clk 0:00:28.2]} 30. Nxa7 {[%clk 0:01:15]} 30... Rc2
{[%clk 0:00:27.2]} 31. Kf1 {[%clk 0:00:43.6]} 31... Rxa2 {[%clk 0:00:26.7]} 32.
Nc6+ {[%clk 0:00:41.7]} 32... Ke6 {[%clk 0:00:26.8]} 33. Nb4 {[%clk 0:00:34.6]}
33... Rb2 {[%clk 0:00:23.3]} 34. Re4+ {[%clk 0:00:26.5]} 34... Kf5 {[%clk
0:00:21.6]} 35. Rf4+ {[%clk 0:00:25.9]} 35... Kg6 {[%clk 0:00:21.2]} 36. Rd4
{[%clk 0:00:02.8]} 36... Bxe2+ {[%clk 0:00:18.7]} 37. Ke1 {[%clk 0:00:02.5]}
37... Bg4 {[%clk 0:00:18.5]} 38. Nd5 {[%clk 0:00:02.3]} 38... Rxb3 {[%clk
0:00:15.6]} 39. Nf4+ {[%clk 0:00:02.3]} 39... Kh7 {[%clk 0:00:15.5]} 40. h3
{[%clk 0:00:01.5]} 40... Bf3 {[%clk 0:00:14.7]} 41. Kf2 {[%clk 0:00:01.8]} 41...
Bc6 {[%clk 0:00:11.4]} 42. Rd2 {[%clk 0:00:02]} 42... Be4 {[%clk 0:00:09.8]} 43.
Nxh5 {[%clk 0:00:01.7]} 43... Rb1 {[%clk 0:00:08.5]} 44. Nf4 {[%clk 0:00:02.1]}
44... b5 {[%clk 0:00:07.8]} 45. h4 {[%clk 0:00:01.7]} 45... b4 {[%clk
0:00:07.8]} 46. g4 {[%clk 0:00:01.5]} 46... b3 {[%clk 0:00:08]} 47. Ne2 {[%clk
0:00:02.1]} 47... Ra1 {[%clk 0:00:03.6]} 48. Nc3 {[%clk 0:00:02.6]} 48... Bc2
{[%clk 0:00:02.4]} 49. Rd4 {[%clk 0:00:02.4]} 1-0

[Event "*** Titled Tuesday Blitz"]
[Site "Chess.com"]
[Date "2021.04.27"]
[Round "6"]
[White "jamalm2"]
[Black "Mazanchenko_Dmitry"]
[Result "1/2-1/2"]
[WhiteElo "2030"]
[BlackElo "2263"]
[TimeControl "180+1"]
[EndTime "11:07:23 PDT"]
[Termination "Game drawn - insufficient material"]

1. e4 {[%clk 0:02:59.7]} 1... c5 {[%clk 0:02:59]} 2. Nf3 {[%clk 0:02:58.9]} 2...
d6 {[%clk 0:02:59.2]} 3. d4 {[%clk 0:02:58.2]} 3... Nf6 {[%clk 0:02:59.4]} 4.
Nc3 {[%clk 0:02:56]} 4... cxd4 {[%clk 0:02:59]} 5. Nxd4 {[%clk 0:02:55.9]} 5...
Nc6 {[%clk 0:02:59.9]} 6. Bg5 {[%clk 0:02:54.1]} 6... Qb6 {[%clk 0:02:59.1]} 7.
Nb3 {[%clk 0:02:52.4]} 7... e6 {[%clk 0:02:57.4]} 8. Bxf6 {[%clk 0:02:49.4]}
8... gxf6 {[%clk 0:02:56.7]} 9. Bd3 {[%clk 0:02:43.8]} 9... h5 {[%clk
0:02:55.6]} 10. Qe2 {[%clk 0:02:40.5]} 10... Bh6 {[%clk 0:02:50.4]} 11. g3
{[%clk 0:02:30.5]} 11... h4 {[%clk 0:02:43.7]} 12. f4 {[%clk 0:02:28.5]} 12...
a6 {[%clk 0:02:18.1]} 13. O-O-O {[%clk 0:02:22.3]} 13... Bd7 {[%clk 0:02:17.8]}
14. Kb1 {[%clk 0:02:21.3]} 14... O-O-O {[%clk 0:02:15.5]} 15. Na4 {[%clk
0:02:16.8]} 15... Qc7 {[%clk 0:02:10.3]} 16. Qf2 {[%clk 0:01:27.4]} 16... hxg3
{[%clk 0:02:07.1]} 17. hxg3 {[%clk 0:01:26.5]} 17... Kb8 {[%clk 0:02:06.4]} 18.
Nb6 {[%clk 0:01:22.3]} 18... Bg7 {[%clk 0:01:56.9]} 19. Rxh8 {[%clk 0:01:20.4]}
19... Rxh8 {[%clk 0:01:47.4]} 20. Nxd7+ {[%clk 0:01:16.9]} 20... Qxd7 {[%clk
0:01:48.3]} 21. Be2 {[%clk 0:01:15.2]} 21... Qc7 {[%clk 0:01:46]} 22. Nd2 {[%clk
0:01:08.4]} 22... f5 {[%clk 0:01:31.6]} 23. exf5 {[%clk 0:01:07.9]} 23... Bd4
{[%clk 0:01:31.5]} 24. Qf3 {[%clk 0:01:05.6]} 24... d5 {[%clk 0:01:15.1]} 25.
Nb3 {[%clk 0:01:04.3]} 25... Bf6 {[%clk 0:01:06.6]} 26. fxe6 {[%clk 0:01:04.2]}
26... fxe6 {[%clk 0:01:07.1]} 27. f5 {[%clk 0:01:04.4]} 27... Nb4 {[%clk
0:00:35.5]} 28. c3 {[%clk 0:00:59.5]} 28... Rc8 {[%clk 0:00:18.9]} 29. fxe6
{[%clk 0:00:58.2]} 29... Be5 {[%clk 0:00:18.7]} 30. Qf7 {[%clk 0:00:50.1]} 30...
Qc6 {[%clk 0:00:10.9]} 31. e7 {[%clk 0:00:49.4]} 31... Bxc3 {[%clk 0:00:08.5]}
32. bxc3 {[%clk 0:00:48.5]} 32... Qxc3 {[%clk 0:00:08.4]} 33. Qg6 {[%clk
0:00:39.8]} 33... Nxa2 {[%clk 0:00:05.3]} 34. Kxa2 {[%clk 0:00:34.8]} 34... Qc2+
{[%clk 0:00:05.6]} 35. Qxc2 {[%clk 0:00:33.7]} 35... Rxc2+ {[%clk 0:00:06.5]}
36. Kb1 {[%clk 0:00:33.6]} 36... Rxe2 {[%clk 0:00:07.4]} 37. Rxd5 {[%clk
0:00:31]} 37... Rxe7 {[%clk 0:00:07.7]} 38. Rg5 {[%clk 0:00:27.8]} 38... Re1+
{[%clk 0:00:06]} 39. Kc2 {[%clk 0:00:27.1]} 39... Re2+ {[%clk 0:00:06.6]} 40.
Kd3 {[%clk 0:00:26.7]} 40... Rb2 {[%clk 0:00:07]} 41. Nc5 {[%clk 0:00:25.2]}
41... Kc7 {[%clk 0:00:05.6]} 42. Rg7+ {[%clk 0:00:24.3]} 42... Kc6 {[%clk
0:00:05.8]} 43. Ne6 {[%clk 0:00:21.7]} 43... Rb3+ {[%clk 0:00:05.5]} 44. Kc4
{[%clk 0:00:20.6]} 44... Ra3 {[%clk 0:00:05.5]} 45. Nd8+ {[%clk 0:00:20.2]}
45... Kd6 {[%clk 0:00:03.6]} 46. Nxb7+ {[%clk 0:00:19.7]} 46... Ke6 {[%clk
0:00:03.9]} 47. Nc5+ {[%clk 0:00:18.4]} 47... Kf5 {[%clk 0:00:03.4]} 48. g4+
{[%clk 0:00:16.7]} 48... Kf6 {[%clk 0:00:03.5]} 49. Ra7 {[%clk 0:00:14.8]} 49...
Ra1 {[%clk 0:00:03.7]} 50. Rxa6+ {[%clk 0:00:13.7]} 50... Rxa6 {[%clk
0:00:03.5]} 51. Nxa6 {[%clk 0:00:13.5]} 51... Kg5 {[%clk 0:00:04.4]} 52. Nc5
{[%clk 0:00:12.1]} 52... Kxg4 {[%clk 0:00:05.3]} 1/2-1/2

[Event "*** Titled Tuesday Blitz"]
[Site "Chess.com"]
[Date "2021.04.27"]
[Round "6"]
[White "KyrgyzFighter"]
[Black "Bad_left_hook"]
[Result "1-0"]
[WhiteElo "2434"]
[BlackElo "2558"]
[TimeControl "180+1"]
[EndTime "11:07:26 PDT"]
[Termination "KyrgyzFighter won by resignation"]

1. c4 {[%clk 0:03:00.9]} 1... e5 {[%clk 0:02:59.5]} 2. Nc3 {[%clk 0:03:01.3]}
2... Nc6 {[%clk 0:02:59.9]} 3. g3 {[%clk 0:03:01.7]} 3... g6 {[%clk 0:03:00.3]}
4. Bg2 {[%clk 0:03:02]} 4... Bg7 {[%clk 0:03:01.2]} 5. e3 {[%clk 0:03:02.6]}
5... d6 {[%clk 0:03:00.8]} 6. Nge2 {[%clk 0:03:02.9]} 6... h5 {[%clk 0:03:00.8]}
7. h4 {[%clk 0:03:02.6]} 7... Bg4 {[%clk 0:02:59.6]} 8. O-O {[%clk 0:03:02]}
8... Nge7 {[%clk 0:02:58.1]} 9. a3 {[%clk 0:03:01.9]} 9... Qd7 {[%clk
0:02:51.9]} 10. b4 {[%clk 0:03:01.3]} 10... g5 {[%clk 0:02:46.7]} 11. f3 {[%clk
0:02:40.5]} 11... Bh3 {[%clk 0:02:45.4]} 12. hxg5 {[%clk 0:02:40.9]} 12... Bxg2
{[%clk 0:02:38]} 13. Kxg2 {[%clk 0:02:41.8]} 13... Qf5 {[%clk 0:02:37.6]} 14.
Ne4 {[%clk 0:02:34.1]} 14... O-O-O {[%clk 0:02:28.1]} 15. Qa4 {[%clk 0:02:21.8]}
15... d5 {[%clk 0:02:13.4]} 16. cxd5 {[%clk 0:02:16.8]} 16... Nxd5 {[%clk
0:02:13.6]} 17. b5 {[%clk 0:02:10.5]} 17... Nb6 {[%clk 0:02:13.6]} 18. Qc2
{[%clk 0:02:10.2]} 18... Ne7 {[%clk 0:02:09.9]} 19. a4 {[%clk 0:02:07.1]} 19...
Nbd5 {[%clk 0:01:49.8]} 20. Ba3 {[%clk 0:02:02.9]} 20... Kb8 {[%clk 0:01:42.8]}
21. a5 {[%clk 0:02:01.7]} 21... Rc8 {[%clk 0:01:30.3]} 22. a6 {[%clk 0:01:50.7]}
22... b6 {[%clk 0:01:22]} 23. Rac1 {[%clk 0:01:50.2]} 23... c5 {[%clk
0:01:12.2]} 24. bxc6 {[%clk 0:01:30.1]} 24... Rxc6 {[%clk 0:01:12.1]} 25. Qa4
{[%clk 0:01:25.2]} 25... Rhc8 {[%clk 0:01:07.1]} 26. Rxc6 {[%clk 0:01:11.4]}
26... Rxc6 {[%clk 0:01:04.5]} 27. Rc1 {[%clk 0:01:03.2]} 27... Qd7 {[%clk
0:00:54.5]} 28. Qb3 {[%clk 0:00:22.4]} 28... Rxc1 {[%clk 0:00:51.7]} 29. Nxc1
{[%clk 0:00:22.3]} 29... Nc8 {[%clk 0:00:32.5]} 30. Nd3 {[%clk 0:00:20.5]} 30...
Nc7 {[%clk 0:00:29.3]} 31. Nec5 {[%clk 0:00:18.2]} 31... Qc6 {[%clk 0:00:23.4]}
32. Qxf7 {[%clk 0:00:14.8]} 32... bxc5 {[%clk 0:00:23.1]} 33. Qxg7 {[%clk
0:00:13.9]} 33... e4 {[%clk 0:00:23.3]} 34. Nxc5 {[%clk 0:00:12.6]} 34... exf3+
{[%clk 0:00:23.6]} 35. Kf2 {[%clk 0:00:13.2]} 35... Nxa6 {[%clk 0:00:21.6]} 36.
Nxa6+ {[%clk 0:00:08.1]} 36... Qxa6 {[%clk 0:00:22.5]} 37. Qe5+ {[%clk
0:00:08.4]} 37... Ka8 {[%clk 0:00:22.3]} 38. Qe4+ {[%clk 0:00:07]} 38... Kb8
{[%clk 0:00:22.7]} 39. Qb4+ {[%clk 0:00:06.1]} 39... Ka8 {[%clk 0:00:20.1]} 40.
Kxf3 {[%clk 0:00:06.1]} 40... Qf1+ {[%clk 0:00:16.2]} 41. Ke4 {[%clk 0:00:06.6]}
41... Qg2+ {[%clk 0:00:15.7]} 42. Kd3 {[%clk 0:00:05.9]} 42... Qxg3 {[%clk
0:00:14.8]} 43. Qe4+ {[%clk 0:00:05.4]} 43... Kb8 {[%clk 0:00:15.1]} 44. Qf4+
{[%clk 0:00:05.4]} 44... Qxf4 {[%clk 0:00:13.6]} 45. exf4 {[%clk 0:00:06.3]}
45... h4 {[%clk 0:00:13.4]} 46. Ke3 {[%clk 0:00:06.7]} 46... Nb6 {[%clk
0:00:12.7]} 47. Kf3 {[%clk 0:00:07]} 47... Nd5 {[%clk 0:00:12.8]} 48. g6 {[%clk
0:00:07]} 48... Nf6 {[%clk 0:00:10.4]} 49. Be7 {[%clk 0:00:07.2]} 49... Ng8
{[%clk 0:00:10.2]} 50. Bxh4 {[%clk 0:00:07.5]} 50... a5 {[%clk 0:00:10.9]} 51.
f5 {[%clk 0:00:08.1]} 51... a4 {[%clk 0:00:10.9]} 52. f6 {[%clk 0:00:08.6]}
52... a3 {[%clk 0:00:04.5]} 53. f7 {[%clk 0:00:09]} 1-0